fUSD/lending_fUSD_20240424
["ID","MTS","AMOUNT","RATE_DAILY","PERIOD"]
[323440521,1713991834087,-736.69,0.00010958,2]
[323440522,1713991834096,-826.15,0.00010958,2]
[323440523,1713991834105,-500.0,0.00010958,2]
[323440524,1713991834115,-500.0,0.00010958,2]
[323440525,1713991834124,-562.8,0.00010958,2]
[323440526,1713991834133,-500.0,0.00010958,2]
[323440527,1713991834144,-500.0,0.00010958,2]
[323440528,1713991834153,-807.78,0.00010958,2]
[323440529,1713991834162,-500.0,0.00010958,2]
[323440530,1713991834171,-705.7,0.00010958,2]
[323440531,1713991834180,-2038.9,0.00010958,2]
[323440532,1713991834189,-2719.84,0.00010958,2]
[323440533,1713991834198,-1307.93,0.00010958,2]
[323440534,1713991834208,-546.95,0.00010958,2]
[323440535,1713991834217,-897.86,0.00010958,2]
[323440536,1713991834226,-1642.17,0.00010958,2]
[323440537,1713991834236,-3738.06,0.00010958,2]
[323440538,1713991834245,-1303.87,0.00010958,2]
[323440539,1713991834254,-805.45,0.00010958,2]
[323440540,1713991834263,-500.0,0.00010958,2]
[323440541,1713991834272,-3644.92,0.00010958,2]
[323440542,1713991834282,-500.0,0.00010958,2]
[323440543,1713991834292,-500.0,0.00010958,2]
[323440544,1713991834303,-1911.86,0.00010958,2]
[323440545,1713991834312,-500.0,0.00010958,2]
[323440546,1713991834321,-500.0,0.00010958,2]
[323440547,1713991834330,-58931.07,0.00010958,2]
[323440548,1713991834341,-1296.39,0.00010958,2]
[323440549,1713991834350,-690.75,0.00010958,2]
[323440550,1713991834359,-500.0,0.00010958,2]
[323440551,1713991834369,-500.0,0.00010958,2]
[323440552,1713991834378,-857.69,0.00010958,2]
[323440553,1713991834388,-2921.56,0.00010958,2]
[323440554,1713991834397,-1941.91,0.00010958,2]
[323440555,1713991834406,-500.0,0.00010958,2]
[323440556,1713991834415,-936.37,0.00010958,2]
[323440557,1713991834425,-1967.54,0.00010958,2]
[323440558,1713991834434,-500.0,0.00010958,2]
[323440559,1713991834444,-3113.04,0.00010958,2]
[323440560,1713991834453,-621.85,0.00010958,2]
[323440561,1713991834463,-611.57,0.00010958,2]
[323440562,1713991834472,-2015.75,0.00010958,2]
[323440563,1713991834481,-500.0,0.00010958,2]
[323440564,1713991834490,-500.0,0.00010958,2]
[323440565,1713991834500,-1275.63,0.00010958,2]
[323440566,1713991834509,-696.19,0.00010958,2]
[323440567,1713991834518,-1820.17,0.00010958,2]
[323440568,1713991834527,-947.66,0.00010958,2]
[323440569,1713991834537,-1464.99,0.00010958,2]
[323440570,1713991834545,-2801.3,0.00010958,2]
[323440571,1713991834555,-41852.14,0.00010958,2]
[323440572,1713991834564,-500.0,0.00010958,2]
[323440573,1713991834573,-500.0,0.00010958,2]
[323440574,1713991834582,-1433.62,0.00010958,2]
[323440575,1713991834592,-288.99315548,0.00010958,2]
[323440576,1713991835140,-807.33684452,0.00010958,2]
[323440577,1713991835150,-208.21685267,0.00010958,2]
[323440578,1713991835161,-1204.62,0.00010958,2]
[323440579,1713991835171,-1145.17,0.00010958,2]
[323440580,1713991835180,-500.0,0.00010958,2]
[323440581,1713991835189,-670.73,0.00010958,2]
[323440582,1713991835199,-818.13,0.00010958,2]
[323440583,1713991835208,-802.18,0.00010958,2]
[323440584,1713991835217,-500.0,0.00010958,2]
[323440585,1713991835227,-27802.61,0.00010958,2]
[323440586,1713991835236,-926.5,0.00010958,2]
[323440587,1713991835246,-956.63,0.00010958,2]
[323440588,1713991835255,-500.0,0.00010958,2]
[323440589,1713991835264,-1022.62,0.00010958,2]
[323440590,1713991835273,-1268.18,0.00010958,2]
[323440591,1713991835283,-807.35,0.00010958,2]
[323440592,1713991835294,-552.13,0.00010958,2]
[323440593,1713991835303,-1304.69,0.00010958,2]
[323440594,1713991835313,-745.21,0.00010958,2]
[323440595,1713991835322,-1518.01,0.00010958,2]
[323440596,1713991835332,-1258.54,0.00010958,2]
[323440597,1713991835342,-500.0,0.00010958,2]
[323440598,1713991835352,-1273.21,0.00010958,2]
[323440599,1713991835361,-500.0,0.00010958,2]
[323440600,1713991835372,-855.16,0.00010958,2]
[323440601,1713991835382,-3556.77,0.00010958,2]
[323440602,1713991835391,-661.08,0.00010958,2]
[323440603,1713991835400,-1147.95,0.00010958,2]
[323440604,1713991835410,-616.17,0.00010958,2]
[323440605,1713991835420,-500.0,0.00010958,2]
[323440606,1713991835430,-711.37,0.00010958,2]
[323440607,1713991835440,-1278.88,0.00010958,2]
[323440608,1713991835449,-500.0,0.00010958,2]
[323440609,1713991835460,-630.07,0.00010958,2]
[323440610,1713991835472,-1352.75,0.00010958,2]
[323440611,1713991835482,-500.0,0.00010958,2]
[323440612,1713991835491,-1942.44,0.00010958,2]
[323440613,1713991835500,-1004.93,0.00010958,2]
[323440614,1713991835512,-500.0,0.00010958,2]
[323440615,1713991835522,-500.0,0.00010958,2]
[323440616,1713991835531,-500.0,0.00010958,2]
[323440617,1713991835540,-607.85,0.00010958,2]
[323440618,1713991835549,-904.31012879,0.00010958,2]
[323440619,1713991836187,-65.98987121,0.00010958,2]
[323440620,1713991836198,-366.1461007,0.00010958,2]
[323440621,1713991836210,-290.0,0.00010958,2]
[323440622,1713991836224,-748.80304712,0.00010958,2]
[323440623,1713991836236,-380.54,0.00010958,2]
[323440624,1713991836249,-779.28,0.00010958,2]
[323440625,1713991836261,-221.03085218,0.00010958,2]
[323440626,1713991836272,-500.0,0.00010958,2]
[323440627,1713991836282,-336.56914782,0.00010958,2]
[323440628,1713991836295,-163.43085218,0.00010958,2]
[323440629,1713991836304,-2017.97,0.00010958,2]
[323440630,1713991836314,-1408.5,0.00010958,2]
[323440631,1713991836324,-500.0,0.00010958,2]
[323440632,1713991836334,-1253.8,0.00010958,2]
[323440633,1713991836344,-2871.24,0.00010958,2]
[323440634,1713991836353,-500.0,0.00010958,2]
[323440635,1713991836363,-500.0,0.00010958,2]
[323440636,1713991836374,-1364.69,0.00010958,2]
[323440637,1713991836384,-556.02,0.00010958,2]
[323440638,1713991836393,-500.0,0.00010958,2]
[323440639,1713991836403,-305.67537455,0.00010958,2]
[323440640,1713991836874,-363.76455997,0.00010958,2]
[323440641,1713991836900,-370.71006548,0.00010958,2]
[323440642,1713991836910,-2840.23,0.00010958,2]
[323440643,1713991836920,-839.05993452,0.00010958,2]
[323440644,1713991836932,-1220.45006548,0.00010958,2]
[323440645,1713991836941,-179.54993448,0.00010958,2]
[323440646,1713991836953,-320.45006552,0.00010958,2]
[323440647,1713991836963,-468.84280272,0.00010958,2]
[323440648,1713991836975,-31.15719728,0.00010958,2]
[323440649,1713991836985,-715.7,0.00010958,2]
[323440650,1713991836994,-79.46830252,0.00010958,2]
[323440651,1713991837007,-420.53169748,0.00010958,2]
[323440652,1713991837017,-544.33,0.00010958,2]
[323440653,1713991837027,-1817.33,0.00010958,2]
[323440654,1713991837037,-1548.88,0.00010958,2]
[323440655,1713991837046,-987.87,0.00010958,2]
[323440656,1713991837055,-356.30801469,0.00010958,2]
[323440657,1713991837068,-259.93198531,0.00010958,2]
[323440658,1713991837077,-500.0,0.00010958,2]
[323440659,1713991837087,-3875.02,0.00010958,2]
[323440660,1713991837096,-500.0,0.00010958,2]
[323440661,1713991837106,-1544.0,0.00010958,2]
[323440662,1713991837115,-500.0,0.00010958,2]
[323440663,1713991837125,-1231.43,0.00010958,2]
[323440664,1713991837135,-2789.34,0.00010958,2]
[323440665,1713991837146,-3734.67,0.00010958,2]
[323440666,1713991837156,-8238.28,0.00010958,2]
[323440667,1713991837166,-1407.11,0.00010958,2]
[323440668,1713991837176,-500.0,0.00010958,2]
[323440669,1713991837186,-500.0,0.00010958,2]
[323440670,1713991837196,-1307.71,0.00010958,2]
[323440671,1713991837206,-500.0,0.00010958,2]
[323440672,1713991837215,-531.02,0.00010958,2]
[323440673,1713991837225,-1027.0,0.00010958,2]
[323440674,1713991837235,-581.35,0.00010958,2]
[323440675,1713991837244,-500.0,0.00010958,2]
[323440676,1713991837253,-835.89,0.00010958,2]
[323440677,1713991837263,-1276.67,0.00010958,2]
[323440678,1713991837273,-500.0,0.00010958,2]
[323440679,1713991837283,-500.0,0.00010958,2]
[323440680,1713991837294,-500.0,0.00010958,2]
[323440681,1713991837304,-1932.45,0.00010958,2]
[323440682,1713991837314,-1468.72,0.00010958,2]
[323440683,1713991837324,-500.0,0.00010958,2]
[323440684,1713991837333,-500.0,0.00010958,2]
[323440685,1713991837344,-500.0,0.00010958,2]
[323440686,1713991837353,-713.89,0.00010958,2]
[323440687,1713991837363,-8052.86,0.00010958,2]
[323440688,1713991837373,-846.41,0.00010958,2]
[323440689,1713991837382,-500.0,0.00010958,2]
[323440690,1713991837392,-500.0,0.00010958,2]
[323440691,1713991837402,-500.0,0.00010958,2]
[323440692,1713991837411,-194.01672326,0.00010958,2]
[323440693,1713991837421,-677.71,0.00010958,2]
[323440694,1713991837431,-2000.0,0.00010959,3]
[323440695,1713991837440,-150.0,0.00010959,2]
[323440696,1713991837449,-207.25059114,0.00010999,2]
[323440697,1713991837458,-5846.4142757,0.00010999,2]
[323440698,1713991837467,-5000.0,0.00011,2]
[323440699,1713991837476,-1747.8838238,0.00011,2]
[323440700,1713991837485,-300.0,0.00011,2]
[323440701,1713991837495,-173.44820364,0.00011,2]
[323440702,1713991837505,-266.31372902,0.00011,2]
[323440703,1713991837515,-907.13387672,0.00011,2]
[323440704,1713991837525,-1880.0199669,0.00011028,2]
[323440705,1713991837535,-362.5871517,0.00011028,2]
[323440706,1713991837544,-1071.7796977,0.00011028,2]
[323440707,1713991837554,-192.39388199,0.00011028,2]
[323440708,1713991837564,-10566.15570145,0.00011028,2]
[323440709,1713991837573,-158.56041771,0.00011028,2]
[323440710,1713991837583,-736.63871946,0.00011028,2]
[323440711,1713991837592,-264.01498696,0.00011028,2]
[323440712,1713991837602,-189.71207442,0.00011028,2]
[323440713,1713991837611,-362.81259661,0.00011028,2]
[323440714,1713991837621,-990.62994113,0.00011028,2]
[323440715,1713991837631,-1993.20295054,0.00011028,2]
[323440716,1713991837642,-155.26212772,0.00011028,2]
[323440717,1713991837651,-175.55659933,0.00011028,2]
[323440718,1713991837662,-4525.72187863,0.00011028,2]
[323440719,1713991837671,-682.94892054,0.00011028,2]
[323440720,1713991837683,-1136.31586257,0.00011028,2]
[323440721,1713991837693,-245.12088853,0.00011028,2]
[323440722,1713991837702,-174.12211115,0.00011028,2]
[323440723,1713991837712,-155.0,0.00011028,2]
[323440724,1713991837722,-155.51813378,0.00011028,2]
[323440725,1713991837732,-155.3047756,0.00011028,2]
[323440726,1713991837741,-155.0,0.00011028,2]
[323440727,1713991837750,-155.0,0.00011028,2]
[323440728,1713991837759,-223.21569159,0.00011028,2]
[323440729,1713991837769,-156.05763323,0.00011028,2]
[323440730,1713991837779,-155.57284017,0.00011028,2]
[323440731,1713991837789,-5088.90360486,0.00011028,2]
[323440732,1713991837798,-9630.67916185,0.00011028,2]
[323440733,1713991837808,-156.45340642,0.00011028,2]
[323440734,1713991837817,-155.0,0.00011028,2]
[323440735,1713991837827,-155.96289677,0.00011028,2]
[323440736,1713991837836,-155.56538191,0.00011028,2]
[323440737,1713991837846,-239.38739346,0.00011028,2]
[323440738,1713991837855,-260.95002711,0.00011028,2]
[323440739,1713991837865,-155.2599321,0.00011028,2]
[323440740,1713991837874,-190.99719088,0.00011028,2]
[323440741,1713991837883,-155.70969694,0.00011028,2]
[323440742,1713991837896,-703.7365253,0.00011028,2]
[323440744,1713991837905,-200.67855606,0.00011028,2]
[323440746,1713991837915,-524.45642726,0.00011029,2]
[323440748,1713991837924,-15950.11104111,0.00011029,2]
[323440750,1713991837937,-3898.02800978,0.00011029,2]
[323440752,1713991837946,-582.76482878,0.0001103,2]
[323440756,1713991837971,-383.23517122,0.0001103,2]
[323440757,1713991837980,-325.67432968,0.0001103,2]
[323440759,1713991837989,-3338.71880827,0.0001103,2]
[323440761,1713991838000,-2522.17255414,0.0001103,2]
[323440763,1713991838011,-642.58607974,0.0001103,2]
[323440765,1713991838023,-8945.45338396,0.0001103,2]
[323440769,1713991838034,-1497.07238,0.0001103,2]
[323440772,1713991838050,-1628.38678977,0.0001103,2]
[323440776,1713991838061,-5303.3560839,0.0001103,2]
[323440778,1713991838071,-333.0,0.0001103,2]
[323440789,1713991838920,-1799.86852288,0.0001093,2]
[323440790,1713991838933,-8200.13147712,0.0001093,2]
[323440791,1713991838946,-272700.55256209,0.0001103,2]
[323440792,1713991838955,-849.88790401,0.00011064,2]
[323440793,1713991838966,-695.88,0.00011094,2]
[323440794,1713991838975,-699.99,0.00011094,2]
[323440795,1713991838984,-200.01599055,0.00011123,2]
[323440796,1713991838993,-1000.0,0.00011132,2]
[323440797,1713991839004,-1000.0,0.00011139,2]
[323440798,1713991839013,-500.0,0.00011139,2]
[323440799,1713991839022,-13578.91122462,0.000112,2]
[323440800,1713991839032,-9651.03965933,0.00011212,2]
[323440801,1713991839041,-1035.0,0.00011232,2]
[323440802,1713991839050,-500.0,0.00011232,2]
[323440803,1713991839060,-500.0,0.00011232,2]
[323440804,1713991839069,-500.0,0.00011232,2]
[323440805,1713991839079,-500.0,0.00011232,2]
[323440806,1713991839089,-283.72,0.00011232,2]
[323440807,1713991839098,-500.0,0.00011232,2]
[323440808,1713991839108,-647.06,0.00011232,2]
[323440809,1713991839117,-500.0,0.00011232,2]
[323440810,1713991839127,-500.0,0.00011232,2]
[323440811,1713991839137,-840.66,0.00011232,2]
[323440812,1713991839147,-500.0,0.00011232,2]
[323440813,1713991839156,-805.34,0.00011232,2]
[323440814,1713991839165,-856.22,0.00011232,2]
[323440815,1713991839175,-500.0,0.00011232,2]
[323440816,1713991839184,-500.0,0.00011232,2]
[323440817,1713991839194,-500.0,0.00011232,2]
[323440818,1713991839203,-500.0,0.00011232,2]
[323440819,1713991839213,-261.57786006,0.00011232,2]
[323440820,1713991839222,-500.0,0.00011232,2]
[323440821,1713991839232,-500.0,0.00011232,2]
[323440822,1713991839241,-615.27,0.00011232,2]
[323440823,1713991839251,-574.89,0.00011232,2]
[323440824,1713991839260,-500.0,0.00011232,2]
[323440825,1713991839269,-500.0,0.00011232,2]
[323440826,1713991839278,-591.14,0.00011232,2]
[323440827,1713991839287,-500.0,0.00011232,2]
[323440828,1713991839303,-500.0,0.00011232,2]
[323440829,1713991839313,-150.0,0.00011232,2]
[323440830,1713991839322,-859.61,0.00011232,2]
[323440831,1713991839331,-506.23,0.00011232,2]
[323440832,1713991839342,-500.0,0.00011232,2]
[323440833,1713991839351,-500.0,0.00011232,2]
[323440834,1713991839360,-842.34,0.00011232,2]
[323440835,1713991839371,-548.43,0.00011232,2]
[323440836,1713991839380,-500.0,0.00011232,2]
[323440837,1713991839389,-500.0,0.00011232,2]
[323440838,1713991839400,-230.52,0.00011232,2]
[323440839,1713991839410,-197.36,0.00011232,2]
[323440840,1713991839419,-500.0,0.00011232,2]
[323440841,1713991839428,-500.0,0.00011232,2]
[323440842,1713991839437,-500.0,0.00011232,2]
[323440843,1713991839448,-500.0,0.00011232,2]
[323440844,1713991839458,-665.53,0.00011232,2]
[323440845,1713991839469,-500.0,0.00011232,2]
[323440846,1713991839478,-500.0,0.00011232,2]
[323440847,1713991839487,-500.0,0.00011232,2]
[323440848,1713991839498,-500.0,0.00011232,2]
[323440849,1713991839508,-500.0,0.00011232,2]
[323440850,1713991839517,-736.69,0.00011232,2]
[323440851,1713991839528,-826.15,0.00011232,2]
[323440852,1713991839538,-500.0,0.00011232,2]
[323440853,1713991839548,-500.0,0.00011232,2]
[323440854,1713991839557,-500.0,0.00011232,2]
[323440855,1713991839567,-807.78,0.00011232,2]
[323440856,1713991839578,-2038.9,0.00011232,2]
[323440857,1713991839587,-705.7,0.00011232,2]
[323440858,1713991839800,-1307.93,0.00011232,2]
[323440859,1713991839810,-546.95,0.00011232,2]
[323440860,1713991839819,-1642.17,0.00011232,2]
[323440861,1713991839828,-3738.06,0.00011232,2]
[323440862,1713991839838,-805.45,0.00011232,2]
[323440863,1713991839847,-500.0,0.00011232,2]
[323440864,1713991839857,-500.0,0.00011232,2]
[323440865,1713991839866,-500.0,0.00011232,2]
[323440866,1713991839875,-1911.86,0.00011232,2]
[323440867,1713991839884,-500.0,0.00011232,2]
[323440868,1713991839893,-1296.39,0.00011232,2]
[323440869,1713991839903,-690.75,0.00011232,2]
[323440870,1713991839912,-500.0,0.00011232,2]
[323440871,1713991839922,-500.0,0.00011232,2]
[323440872,1713991839932,-857.69,0.00011232,2]
[323440873,1713991839941,-2921.56,0.00011232,2]
[323440875,1713991839950,-1941.91,0.00011232,2]
[323440876,1713991839961,-500.0,0.00011232,2]
[323440877,1713991839970,-936.37,0.00011232,2]
[323440878,1713991839980,-1967.54,0.00011232,2]
[323440879,1713991839990,-500.0,0.00011232,2]
[323440880,1713991839999,-3113.04,0.00011232,2]
[323440881,1713991840008,-621.85,0.00011232,2]
[323440883,1713991840019,-611.57,0.00011232,2]
[323440885,1713991840029,-2015.75,0.00011232,2]
[323440886,1713991840037,-500.0,0.00011232,2]
[323440887,1713991840048,-500.0,0.00011232,2]
[323440888,1713991840059,-1275.63,0.00011232,2]
[323440889,1713991840068,-696.19,0.00011232,2]
[323440892,1713991840077,-1820.17,0.00011232,2]
[323440894,1713991840087,-947.66,0.00011232,2]
[323440895,1713991840096,-1464.99,0.00011232,2]
[323440896,1713991840106,-2801.3,0.00011232,2]
[323440897,1713991840115,-41852.14,0.00011232,2]
[323440898,1713991840124,-500.0,0.00011232,2]
[323440899,1713991840134,-500.0,0.00011232,2]
[323440900,1713991840143,-1433.62,0.00011232,2]
[323440901,1713991840153,-1096.33,0.00011232,2]
[323440902,1713991840164,-1204.62,0.00011232,2]
[323440903,1713991840173,-1145.17,0.00011232,2]
[323440904,1713991840183,-500.0,0.00011232,2]
[323440905,1713991840192,-670.73,0.00011232,2]
[323440906,1713991840201,-818.13,0.00011232,2]
[323440907,1713991840210,-802.18,0.00011232,2]
[323440908,1713991840219,-500.0,0.00011232,2]
[323440909,1713991840238,-27802.61,0.00011232,2]
[323440910,1713991840249,-926.5,0.00011232,2]
[323440911,1713991840258,-956.63,0.00011232,2]
[323440912,1713991840267,-500.0,0.00011232,2]
[323440913,1713991840277,-1022.62,0.00011232,2]
[323440914,1713991840287,-1268.18,0.00011232,2]
[323440915,1713991840298,-807.35,0.00011232,2]
[323440916,1713991840308,-552.13,0.00011232,2]
[323440917,1713991840317,-1304.69,0.00011232,2]
[323440918,1713991840327,-745.21,0.00011232,2]
[323440919,1713991840337,-1518.01,0.00011232,2]
[323440920,1713991840347,-1258.54,0.00011232,2]
[323440921,1713991840357,-500.0,0.00011232,2]
[323440922,1713991840367,-1273.21,0.00011232,2]
[323440923,1713991840379,-500.0,0.00011232,2]
[323440924,1713991840390,-855.16,0.00011232,2]
[323440925,1713991840403,-3556.77,0.00011232,2]
[323440926,1713991840413,-661.08,0.00011232,2]
[323440927,1713991840424,-1147.95,0.00011232,2]
[323440928,1713991840434,-616.17,0.00011232,2]
[323440929,1713991840445,-500.0,0.00011232,2]
[323440930,1713991840455,-711.37,0.00011232,2]
[323440931,1713991840465,-1278.88,0.00011232,2]
[323440932,1713991840474,-500.0,0.00011232,2]
[323440933,1713991840485,-630.07,0.00011232,2]
[323440934,1713991840495,-1352.75,0.00011232,2]
[323440935,1713991840505,-500.0,0.00011232,2]
[323440936,1713991840515,-1942.44,0.00011232,2]
[323440937,1713991840524,-1004.93,0.00011232,2]
[323440938,1713991840533,-500.0,0.00011232,2]
[323440939,1713991840544,-500.0,0.00011232,2]
[323440940,1713991840553,-607.85,0.00011232,2]
[323440941,1713991840564,-970.3,0.00011232,2]
[323440942,1713991840573,-2785.8,0.00011232,2]
[323440943,1713991840583,-500.0,0.00011232,2]
[323440944,1713991840593,-500.0,0.00011232,2]
[323440945,1713991840602,-2017.97,0.00011232,2]
[323440946,1713991840612,-1408.5,0.00011232,2]
[323440947,1713991840622,-500.0,0.00011232,2]
[323440948,1713991840631,-1253.8,0.00011232,2]
[323440949,1713991840640,-2871.24,0.00011232,2]
[323440950,1713991840650,-500.0,0.00011232,2]
[323440951,1713991840660,-500.0,0.00011232,2]
[323440953,1713991840669,-1364.69,0.00011232,2]
[323440955,1713991840679,-556.02,0.00011232,2]
[323440957,1713991840688,-500.0,0.00011232,2]
[323440959,1713991840698,-1040.15,0.00011232,2]
[323440961,1713991840707,-2840.23,0.00011232,2]
[323440963,1713991840716,-2059.51,0.00011232,2]
[323440964,1713991840725,-500.0,0.00011232,2]
[323440966,1713991840735,-500.0,0.00011232,2]
[323440967,1713991840746,-715.7,0.00011232,2]
[323440968,1713991840755,-500.0,0.00011232,2]
[323440970,1713991840764,-544.33,0.00011232,2]
[323440972,1713991840774,-1817.33,0.00011232,2]
[323440974,1713991840783,-1548.88,0.00011232,2]
[323440976,1713991840792,-987.87,0.00011232,2]
[323440977,1713991840802,-616.24,0.00011232,2]
[323440978,1713991840811,-500.0,0.00011232,2]
[323440979,1713991840820,-3875.02,0.00011232,2]
[323440980,1713991840829,-500.0,0.00011232,2]
[323440981,1713991840838,-1544.0,0.00011232,2]
[323440982,1713991840848,-500.0,0.00011232,2]
[323440983,1713991840857,-1231.43,0.00011232,2]
[323440984,1713991840866,-2789.34,0.00011232,2]
[323440985,1713991840876,-3734.67,0.00011232,2]
[323440986,1713991840885,-8238.28,0.00011232,2]
[323440987,1713991840894,-1407.11,0.00011232,2]
[323440988,1713991840906,-500.0,0.00011232,2]
[323440989,1713991840916,-500.0,0.00011232,2]
[323440990,1713991840926,-1307.71,0.00011232,2]
[323440991,1713991840935,-1027.0,0.00011232,2]
[323440992,1713991840946,-500.0,0.00011232,2]
[323440993,1713991840955,-835.89,0.00011232,2]
[323440994,1713991840965,-1276.67,0.00011232,2]
[323440995,1713991840975,-500.0,0.00011232,2]
[323440996,1713991840985,-513.54,0.00011232,2]
[323440997,1713991840994,-500.0,0.00011232,2]
[323440998,1713991841004,-1932.45,0.00011232,2]
[323440999,1713991841014,-1468.72,0.00011232,2]
[323441000,1713991841023,-399.94,0.00011232,2]
[323441001,1713991841032,-500.0,0.00011232,2]
[323441002,1713991841042,-713.89,0.00011232,2]
[323441003,1713991841052,-8052.86,0.00011232,2]
[323441004,1713991841061,-846.41,0.00011232,2]
[323441005,1713991841070,-500.0,0.00011232,2]
[323441006,1713991841081,-677.71,0.00011232,2]
[323441007,1713991841092,-849.88790401,0.00011269,2]
[323441008,1713991841103,-12986.45,0.00011281,2]
[323441009,1713991841112,-849.15,0.00011281,2]
[323441010,1713991841122,-11991.39,0.00011281,2]
[323441011,1713991841131,-370.39,0.00011297,2]
[323441012,1713991841141,-2999.999,0.000113,2]
[323441013,1713991841153,-1000.0,0.00011362,2]
[323441014,1713991841162,-500.0,0.00011362,2]
[323441015,1713991841173,-1847.0,0.000114,2]
[323441016,1713991841183,-10719.32113549,0.00011406,2]
[323441017,1713991841192,-29290.0,0.00011442,2]
[323441018,1713991841202,-191.2,0.00011449,2]
[323441019,1713991841211,-218.87377067,0.00011452,2]
[323441020,1713991841220,-197.86380696,0.00011452,2]
[323441021,1713991841229,-342.81932911,0.00011452,2]
[323441022,1713991841238,-208.68613492,0.00011452,2]
[323441023,1713991841247,-1030.5412573,0.00011453,3]
[323441024,1713991841256,-849.88790401,0.00011475,2]
[323441025,1713991841265,-266.31372901,0.00011475,2]
[323441026,1713991841275,-344.38092617,0.00011488,2]
[323441027,1713991841284,-907.13387672,0.00011496,2]
[323441028,1713991841296,-157.23443646,0.00011504,2]
[323441029,1713991841306,-155.0,0.00011504,2]
[323441030,1713991841315,-207.66380842,0.00011504,2]
[323441031,1713991841324,-3921.28300375,0.00011505,2]
[323441032,1713991841334,-1035.0,0.00011506,2]
[323441033,1713991841344,-500.0,0.00011506,2]
[323441034,1713991841354,-500.0,0.00011506,2]
[323441035,1713991841363,-500.0,0.00011506,2]
[323441036,1713991841374,-500.0,0.00011506,2]
[323441037,1713991841383,-500.0,0.00011506,2]
[323441038,1713991841393,-647.06,0.00011506,2]
[323441039,1713991841402,-500.0,0.00011506,2]
[323441040,1713991841412,-500.0,0.00011506,2]
[323441041,1713991841421,-840.66,0.00011506,2]
[323441042,1713991841432,-500.0,0.00011506,2]
[323441043,1713991841442,-805.34,0.00011506,2]
[323441044,1713991841453,-856.22,0.00011506,2]
[323441045,1713991841463,-500.0,0.00011506,2]
[323441046,1713991841472,-500.0,0.00011506,2]
[323441047,1713991841481,-500.0,0.00011506,2]
[323441048,1713991841490,-612.80502788,0.00011506,2]
[323441049,1713991841500,-500.0,0.00011506,2]
[323441050,1713991841509,-500.0,0.00011506,2]
[323441051,1713991841520,-615.27,0.00011506,2]
[323441052,1713991841529,-574.89,0.00011506,2]
[323441053,1713991841538,-388.44015875,0.00011506,2]
[323441054,1713991841549,-500.0,0.00011506,2]
[323441055,1713991841559,-591.14,0.00011506,2]
[323441056,1713991841569,-500.0,0.00011506,2]
[323441057,1713991841579,-500.0,0.00011506,2]
[323441058,1713991841589,-150.0,0.00011506,2]
[323441059,1713991841600,-859.61,0.00011506,2]
[323441060,1713991841609,-506.23,0.00011506,2]
[323441061,1713991841619,-500.0,0.00011506,2]
[323441062,1713991841628,-195.38533114,0.00011506,2]
[323441063,1713991841637,-842.34,0.00011506,2]
[323441064,1713991841648,-548.43,0.00011506,2]
[323441065,1713991841657,-500.0,0.00011506,2]
[323441066,1713991841667,-500.0,0.00011506,2]
[323441067,1713991841676,-329.50908193,0.00011506,2]
[323441068,1713991841686,-500.0,0.00011506,2]